lending/lending_fUSD_20241120
["ID","MTS","AMOUNT","RATE_DAILY","PERIOD"]
[342807516,1732143155034,-208.11453,0.00058082,120]
[342807517,1732143155043,-208.11453,0.00058082,120]
[342807518,1732143155052,-4113.57,0.00058082,120]
[342807519,1732143155061,-208.11453,0.00058082,120]
[342807520,1732143155070,-208.11453,0.00058082,120]
[342807521,1732143155079,-3361.09,0.00058082,120]
[342807522,1732143155088,-208.11453,0.00058082,120]
[342807523,1732143155097,-208.11453,0.00058082,120]
[342807524,1732143155107,-2336.41,0.00058082,120]
[342807525,1732143155116,-208.114538,0.00058082,120]
[342807526,1732143155125,-914.26,0.00058082,120]
[342807527,1732143155135,-1225.66,0.00058082,120]
[342807528,1732143155145,-2227.59,0.00058082,120]
[342807529,1732143155154,-1199.34,0.00058082,120]
[342807530,1732143155164,-500.0,0.00058082,120]
[342807531,1732143155173,-818.4,0.00058082,120]
[342807532,1732143155184,-945.67,0.00058082,120]
[342807533,1732143155193,-4656.57,0.00058082,120]
[342807534,1732143155205,-656.2,0.00058082,120]
[342807535,1732143155214,-1601.15,0.00058082,120]
[342807536,1732143155224,-151.0,0.00058082,120]
[342807537,1732143155235,-151.0,0.00058082,120]
[342807538,1732143155245,-2590.51,0.00058082,120]
[342807539,1732143155254,-151.0,0.00058082,120]
[342807540,1732143155264,-151.0,0.00058082,120]
[342807541,1732143155273,-500.0,0.00058082,120]
[342807542,1732143155283,-151.0,0.00058082,120]
[342807543,1732143155294,-500.0,0.00058082,120]
[342807544,1732143155303,-617.4,0.00058082,120]
[342807545,1732143155313,-1087.48,0.00058082,120]
[342807546,1732143155322,-500.0,0.00058082,120]
[342807547,1732143155332,-500.0,0.00058082,120]
[342807548,1732143155341,-1021.22,0.00058082,120]
[342807549,1732143155350,-500.0,0.00058082,120]
[342807550,1732143155359,-530.21,0.00058082,120]
[342807551,1732143155367,-151.0,0.00058082,120]
[342807552,1732143155376,-151.0,0.00058082,120]
[342807553,1732143155385,-4078.12,0.00058082,120]
[342807554,1732143155395,-609.85,0.00058082,120]
[342807555,1732143155404,-185.406492,0.00058082,120]
[342807556,1732143155412,-185.406492,0.00058082,120]
[342807557,1732143155421,-151.0,0.00058082,120]
[342807558,1732143155430,-1271.08,0.00058082,120]
[342807559,1732143155439,-274.452944,0.00058082,120]
[342807560,1732143155448,-630.13,0.00058082,120]
[342807561,1732143155456,-1053.42,0.00058082,120]
[342807562,1732143155465,-868.75,0.00058082,120]
[342807563,1732143155475,-10737.37,0.00058082,21]
[342807564,1732143155484,-3054.48,0.00058082,120]
[342807565,1732143155493,-185.406492,0.00058082,120]
[342807566,1732143155502,-185.406492,0.00058082,120]
[342807567,1732143155511,-772.0,0.00058082,120]
[342807568,1732143155522,-1615.7,0.00058082,120]
[342807569,1732143155533,-790.82,0.00058082,120]
[342807570,1732143155542,-500.0,0.00058082,120]
[342807571,1732143155551,-2780.77,0.00058082,120]
[342807572,1732143155560,-189.710059,0.00058082,120]
[342807573,1732143155570,-189.710059,0.00058082,120]
[342807574,1732143155579,-408.72537786,0.00058082,120]
[342807575,1732143155588,-3170.06,0.00058082,120]
[342807576,1732143155597,-189.710059,0.00058082,120]
[342807577,1732143155607,-189.710059,0.00058082,120]
[342807578,1732143155616,-530.51,0.00058082,120]
[342807579,1732143155626,-500.0,0.00058082,120]
[342807580,1732143155634,-189.710059,0.00058082,120]
[342807581,1732143155643,-814.28,0.00058082,120]
[342807582,1732143155652,-500.0,0.00058082,120]
[342807583,1732143155661,-500.0,0.00058082,120]
[342807584,1732143155671,-500.0,0.00058082,120]
[342807585,1732143155680,-189.710059,0.00058082,120]
[342807586,1732143155690,-189.710059,0.00058082,120]
[342807587,1732143155700,-1053.94,0.00058082,120]
[342807588,1732143155710,-189.710059,0.00058082,120]
[342807589,1732143155719,-189.710059,0.00058082,120]
[342807590,1732143155728,-832.21,0.00058082,120]
[342807591,1732143155740,-189.710052,0.00058082,120]
[342807592,1732143155749,-559.12,0.00058082,120]
[342807593,1732143155759,-500.0,0.00058082,120]
[342807594,1732143155770,-500.0,0.00058082,120]
[342807595,1732143155780,-962.23,0.00058082,120]
[342807596,1732143155789,-4610.65,0.00058082,120]
[342807597,1732143155799,-500.0,0.00058082,120]
[342807598,1732143155808,-630.95,0.00058082,120]
[342807599,1732143155816,-7093.52,0.00058082,120]
[342807600,1732143155827,-1497.99,0.00058082,120]
[342807601,1732143155836,-3030.53,0.00058082,120]
[342807602,1732143155846,-2002.76,0.00058082,120]
[342807603,1732143155855,-4996.62,0.00058082,120]
[342807604,1732143155865,-1038.47,0.00058082,120]
[342807605,1732143155877,-3755.03,0.00058082,120]
[342807606,1732143155887,-500.0,0.00058082,120]
[342807607,1732143155896,-500.33,0.00058082,120]
[342807608,1732143155906,-619.43,0.00058082,120]
[342807609,1732143155919,-1395.84,0.00058082,120]
[342807610,1732143155929,-6717.87,0.00058082,120]
[342807611,1732143155937,-4210.05,0.00058082,120]
[342807612,1732143155947,-500.0,0.00058082,120]
[342807613,1732143155958,-4619.32,0.00058082,120]
[342807614,1732143155968,-2125.56,0.00058082,120]
[342807615,1732143155978,-500.0,0.00058082,120]
[342807616,1732143155988,-1522.48,0.00058082,120]
[342807617,1732143155998,-500.0,0.00058082,120]
[342807618,1732143156009,-2913.49,0.00058082,120]
[342807619,1732143156020,-500.0,0.00058082,120]
[342807620,1732143156029,-500.0,0.00058082,120]
[342807621,1732143156039,-6408.58,0.00058082,60]
[342807622,1732143156049,-163.746603,0.00058082,120]
[342807623,1732143156058,-8536.13,0.00058082,120]
[342807624,1732143156068,-163.746603,0.00058082,120]
[342807625,1732143156077,-163.746603,0.00058082,120]
[342807626,1732143156086,-163.746603,0.00058082,120]
[342807627,1732143156096,-500.0,0.00058082,120]
[342807628,1732143156105,-931.52,0.00058082,120]
[342807629,1732143156115,-5185.83,0.00058082,120]
[342807630,1732143156125,-873.24,0.00058082,120]
[342807631,1732143156135,-500.0,0.00058082,120]
[342807632,1732143156144,-163.746603,0.00058082,120]
[342807633,1732143156153,-1838.8,0.00058082,120]
[342807634,1732143156162,-163.746603,0.00058082,120]
[342807635,1732143156171,-163.746603,0.00058082,120]
[342807636,1732143156181,-163.746597,0.00058082,120]
[342807637,1732143156191,-500.0,0.00058082,120]
[342807638,1732143156201,-1525.45,0.00058082,120]
[342807639,1732143156216,-1373.0,0.00058082,120]
[342807640,1732143156225,-1659.86,0.00058082,120]
[342807641,1732143156366,-510.05732609,0.00058082,120]
[342807642,1732143156377,-500.0,0.00058082,120]
[342807643,1732143156387,-5907.77,0.00058082,120]
[342807644,1732143156397,-647.02,0.00058082,120]
[342807645,1732143156407,-1210.69,0.00058082,120]
[342807646,1732143156417,-526.64,0.00058082,120]
[342807647,1732143156427,-500.0,0.00058082,120]
[342807648,1732143156437,-12504.89,0.00058082,120]
[342807649,1732143156449,-1181.36,0.00058082,120]
[342807650,1732143156459,-2076.98,0.00058082,120]
[342807651,1732143156469,-677.21,0.00058082,120]
[342807652,1732143156479,-2434.04,0.00058082,120]
[342807653,1732143156490,-1109.03,0.00058082,120]
[342807654,1732143156502,-151.0,0.00058082,30]
[342807655,1732143156512,-151.0,0.00058082,30]
[342807656,1732143156522,-151.0,0.00058082,30]
[342807657,1732143156532,-1099.32,0.00058082,120]
[342807658,1732143156541,-151.0,0.00058082,30]
[342807659,1732143156551,-151.0,0.00058082,120]
[342807660,1732143156560,-651.95,0.00058082,120]
[342807661,1732143156570,-4681.73,0.00058082,120]
[342807662,1732143156580,-151.0,0.00058082,120]
[342807663,1732143156591,-1502.22,0.00058082,120]
[342807664,1732143156601,-151.0,0.00058082,120]
[342807665,1732143156612,-151.0,0.00058082,120]
[342807666,1732143156622,-757.95,0.00058082,120]
[342807667,1732143156632,-986.66,0.00058082,120]
[342807668,1732143156643,-880.48,0.00058082,120]
[342807669,1732143156654,-500.0,0.00058082,120]
[342807670,1732143156664,-151.0,0.00058082,120]
[342807671,1732143156676,-151.0,0.00058082,120]
[342807672,1732143156686,-151.0,0.00058082,120]
[342807673,1732143156696,-1166.87,0.00058082,120]
[342807674,1732143156706,-151.0,0.00058082,120]
[342807675,1732143156715,-1450.31,0.00058082,120]
[342807676,1732143156725,-548.14,0.00058082,120]
[342807677,1732143156736,-2144.4,0.00058082,120]
[342807678,1732143156747,-1032.14,0.00058082,120]
[342807679,1732143156756,-14474.38,0.00058082,120]
[342807680,1732143156765,-16729.96,0.00058082,120]
[342807681,1732143156775,-500.0,0.00058082,120]
[342807682,1732143156784,-500.0,0.00058082,120]
[342807683,1732143156793,-533.88,0.00058082,120]
[342807684,1732143156803,-2375.8,0.00058082,120]
[342807685,1732143156812,-3517.73,0.00058082,120]
[342807686,1732143156824,-726.78,0.00058082,120]
[342807687,1732143156834,-500.0,0.00058082,120]
[342807688,1732143156844,-2949.54,0.00058082,120]
[342807689,1732143156854,-500.0,0.00058082,120]
[342807690,1732143156863,-680.36,0.00058082,120]
[342807691,1732143156874,-629.45,0.00058082,120]
[342807692,1732143156884,-500.0,0.00058082,120]
[342807693,1732143156896,-1835.32,0.00058082,120]
[342807694,1732143156906,-567.38,0.00058082,120]
[342807695,1732143156919,-1270.02,0.00058082,120]
[342807696,1732143156929,-1077.92,0.00058082,120]
[342807697,1732143156939,-1080.78,0.00058082,120]
[342807698,1732143156950,-500.0,0.00058082,120]
[342807699,1732143156962,-500.0,0.00058082,120]
[342807700,1732143156972,-730.91,0.00058082,120]
[342807701,1732143156982,-794.46,0.00058082,120]
[342807702,1732143156993,-836.47,0.00058082,120]
[342807703,1732143157004,-877.06,0.00058082,120]
[342807704,1732143157014,-1006.93,0.00058082,120]
[342807705,1732143157024,-873.31,0.00058082,120]
[342807706,1732143157034,-500.0,0.00058082,120]
[342807707,1732143157044,-897.49,0.00058082,120]
[342807708,1732143157054,-5067.66,0.00058082,120]
[342807709,1732143157064,-615.04,0.00058082,120]
[342807710,1732143157074,-1213.36,0.00058082,120]
[342807711,1732143157083,-537.82,0.00058082,120]
[342807712,1732143157092,-500.0,0.00058082,120]
[342807713,1732143157102,-500.0,0.00058082,120]
[342807714,1732143157112,-911.56,0.00058082,120]
[342807715,1732143157121,-1001.49,0.00058082,120]
[342807716,1732143157131,-1621.15,0.00058082,120]
[342807717,1732143157141,-1004.9,0.00058082,120]
[342807718,1732143157150,-1363.03,0.00058082,120]
[342807719,1732143157160,-670.6,0.00058082,120]
[342807720,1732143157170,-4519.72,0.00058082,120]
[342807721,1732143157180,-681.14,0.00058082,120]
[342807722,1732143157190,-597.02,0.00058082,120]
[342807723,1732143157200,-1529.3,0.00058082,120]
[342807724,1732143157211,-500.0,0.00058082,120]
[342807725,1732143157221,-5382.48,0.00058082,120]
[342807726,1732143157231,-2209.36,0.00058082,120]
[342807727,1732143157241,-640.41,0.00058082,120]
[342807728,1732143157251,-1045.28,0.00058082,120]
[342807729,1732143157262,-500.0,0.00058082,120]
[342807730,1732143157272,-500.0,0.00058082,120]
[342807731,1732143157282,-5113.62,0.00058082,120]
[342807732,1732143157294,-1728.0,0.000581,7]
[342807733,1732143157304,-150.68,0.00058153,2]
[342807734,1732143157314,-800.0,0.000582,120]
[342807735,1732143157323,-500.0,0.00058356,120]
[342807736,1732143157333,-500.0,0.00058356,120]
[342807737,1732143157342,-500.0,0.00058356,120]
[342807738,1732143157352,-949.28,0.00058356,120]
[342807739,1732143157363,-588.18,0.00058356,120]
[342807740,1732143157373,-524.31888969,0.00058356,120]
[342807741,1732143157383,-216.87,0.00058356,7]
[342807742,1732143157393,-1647.84,0.00058356,120]
[342807743,1732143157402,-500.0,0.00058356,120]
[342807744,1732143157413,-672.22,0.00058356,120]
[342807745,1732143157423,-901.77,0.00058356,120]
[342807746,1732143157433,-749.97,0.00058356,120]
[342807747,1732143157443,-500.0,0.00058356,120]
[342807748,1732143157453,-1584.28,0.00058356,120]
[342807749,1732143157466,-291.52707273,0.00058356,120]
[342807750,1732143157475,-698.15,0.00058356,120]
[342807751,1732143157485,-500.0,0.00058356,120]
[342807752,1732143157494,-500.0,0.00058356,120]
[342807753,1732143157503,-500.0,0.00058356,120]
[342807754,1732143157513,-500.0,0.00058356,120]
[342807755,1732143157523,-550.21,0.00058356,120]
[342807756,1732143157533,-838.1,0.00058356,120]
[342807757,1732143157543,-500.0,0.00058356,120]
[342807758,1732143157553,-151.0,0.00058356,120]
[342807759,1732143157563,-678.26,0.00058356,120]
[342807760,1732143157572,-528.71,0.00058356,120]
[342807761,1732143157582,-577.89,0.00058356,120]
[342807762,1732143157591,-1058.89,0.00058356,120]
[342807763,1732143157601,-500.0,0.00058356,120]
[342807764,1732143157610,-500.0,0.00058356,120]
[342807765,1732143157621,-516.05,0.00058356,120]
[342807766,1732143157631,-500.0,0.00058356,120]
[342807767,1732143157642,-1582.8,0.00058356,120]
[342807768,1732143157651,-512.91,0.00058356,120]
[342807769,1732143157661,-910.7,0.00058356,120]
[342807770,1732143157672,-500.0,0.00058356,120]
[342807771,1732143157681,-686.07,0.00058356,120]
[342807772,1732143157692,-500.0,0.00058356,120]
[342807773,1732143157702,-718.84,0.00058356,120]
[342807774,1732143157712,-500.0,0.00058356,120]
[342807775,1732143157721,-566.64,0.00058356,120]
[342807776,1732143157733,-581.13,0.00058356,120]
[342807777,1732143157743,-558.19,0.00058356,120]
[342807778,1732143157752,-1275.31,0.00058356,120]
[342807779,1732143157762,-500.0,0.00058356,120]
[342807780,1732143157772,-375.93355996,0.00058356,120]
[342807781,1732143157781,-646.55,0.00058356,120]
[342807782,1732143157790,-500.0,0.00058356,120]
[342807783,1732143157799,-889.52,0.00058356,120]
[342807784,1732143157809,-1844.67,0.00058356,120]
[342807785,1732143157818,-1345.16,0.00058356,120]
[342807786,1732143157827,-552.67200006,0.00058356,120]
[342807787,1732143157837,-1354.36,0.00058356,120]
[342807788,1732143157847,-1126.54,0.00058356,120]
[342807789,1732143157856,-810.54,0.00058356,120]
[342807790,1732143157866,-1630.49,0.00058356,120]
[342807791,1732143157875,-1061.11,0.00058356,120]
[342807792,1732143157885,-1539.37,0.00058356,120]
[342807793,1732143157894,-616.53,0.00058356,120]
[342807794,1732143157904,-500.0,0.00058356,120]
[342807795,1732143157918,-1163.7,0.00058356,120]
[342807796,1732143157928,-1697.48,0.00058356,120]
[342807797,1732143157937,-768.83,0.00058356,120]
[342807798,1732143157947,-1494.04,0.00058356,120]
[342807799,1732143157958,-583.76,0.00058356,120]
[342807800,1732143157968,-500.0,0.00058356,120]
[342807801,1732143157978,-500.0,0.00058356,120]
[342807802,1732143157988,-1417.12,0.00058356,120]
[342807803,1732143157998,-514.86,0.00058356,120]
[342807804,1732143158009,-580.28,0.00058356,120]
[342807805,1732143158018,-625.85,0.00058356,120]
[342807806,1732143158028,-835.63,0.00058356,120]
[342807807,1732143158039,-500.0,0.00058356,120]
[342807808,1732143158049,-1642.42,0.00058356,7]
[342807809,1732143158059,-1168.69,0.00058356,120]
[342807810,1732143158069,-500.0,0.00058356,120]
[342807811,1732143158079,-785.67,0.00058356,120]
[342807812,1732143158088,-526.48,0.00058356,120]
[342807813,1732143158098,-1791.8,0.00058356,120]
[342807814,1732143158108,-500.0,0.00058356,120]
[342807815,1732143158117,-500.0,0.00058356,120]
[342807816,1732143158127,-500.0,0.00058356,120]
[342807817,1732143158138,-764.29,0.00058356,120]
[342807818,1732143158148,-937.69,0.00058356,120]
[342807819,1732143158158,-830.14,0.00058356,120]
[342807820,1732143158168,-500.0,0.00058356,58]
[342807821,1732143158178,-268.932243,0.00058356,120]
[342807822,1732143158188,-1926.82,0.00058356,120]
[342807823,1732143158197,-513.97,0.00058356,120]
[342807824,1732143158207,-500.0,0.00058356,120]
[342807825,1732143158217,-1258.94,0.00058356,120]
[342807826,1732143158227,-615.91,0.00058356,120]
[342807827,1732143158237,-739.53,0.00058356,120]
[342807828,1732143158247,-2364.09,0.00058356,120]
[342807829,1732143158257,-500.0,0.00058356,120]
[342807830,1732143158268,-1516.8,0.00058356,120]
[342807831,1732143158277,-644.03,0.00058356,120]
[342807832,1732143158287,-1222.69,0.00058356,120]
[342807833,1732143158296,-2792.61,0.00058356,120]
[342807834,1732143158306,-689.07,0.00058356,120]
[342807835,1732143158315,-598.66,0.00058356,120]
[342807836,1732143158324,-696.8,0.00058356,120]
[342807837,1732143158333,-517.71,0.00058356,120]
[342807838,1732143158343,-670.6,0.00058356,120]
[342807839,1732143158353,-1622.41,0.00058356,120]
[342807840,1732143158363,-732.47,0.00058356,120]
[342807841,1732143158372,-500.0,0.00058356,120]
[342807842,1732143158382,-500.0,0.00058356,120]
[342807843,1732143158391,-3752.95,0.00058356,120]
[342807844,1732143158400,-694.86,0.00058356,120]
[342807845,1732143158409,-527.72,0.00058356,120]
[342807846,1732143158418,-500.0,0.00058356,120]
[342807847,1732143158428,-2754.45,0.00058356,120]
[342807848,1732143158438,-500.0,0.00058356,120]
[342807849,1732143158447,-750.37,0.00058356,120]
[342807850,1732143158458,-1552.42,0.00058356,120]
[342807851,1732143158467,-777.0,0.00058356,120]
[342807852,1732143158477,-586.88,0.00058356,120]
[342807853,1732143158486,-546.79,0.00058356,120]
[342807854,1732143158495,-1410.35,0.00058356,120]
[342807855,1732143158505,-622.81,0.00058356,120]
[342807856,1732143158514,-1078.42,0.00058356,120]
[342807857,1732143158524,-2348.91,0.00058356,120]
[342807858,1732143158536,-1803.88,0.00058356,120]
[342807859,1732143158866,-875.42,0.00058356,120]
[342807860,1732143158883,-908.45,0.00058356,120]
[342807861,1732143158894,-1745.98,0.00058356,120]
[342807862,1732143158904,-643.69,0.00058356,120]
[342807863,1732143158918,-659.6,0.00058356,120]
[342807864,1732143158927,-500.0,0.00058356,120]
[342807865,1732143158939,-1212.54,0.00058356,120]
[342807866,1732143158951,-2042.25,0.00058356,120]
[342807867,1732143158962,-828.06,0.00058356,120]
[342807868,1732143158972,-646.63,0.00058356,120]
[342807869,1732143158983,-806.31,0.00058356,120]
[342807870,1732143158993,-500.0,0.00058356,120]
[342807871,1732143159003,-1287.88,0.00058356,120]
[342807872,1732143159013,-1410.77,0.00058356,120]
[342807873,1732143159023,-623.91,0.00058356,120]
[342807874,1732143159033,-1000.52,0.00058356,120]
[342807875,1732143159044,-766.21,0.00058356,120]
[342807876,1732143159054,-500.0,0.00058356,120]
[342807877,1732143159065,-1013.49,0.00058356,120]
[342807878,1732143159076,-811.56,0.00058356,120]
[342807879,1732143159087,-500.0,0.00058356,120]
[342807880,1732143159097,-500.0,0.00058356,120]
[342807881,1732143159108,-3361.2,0.00058356,120]
[342807882,1732143159118,-1185.33,0.00058356,120]
[342807883,1732143159129,-633.81,0.00058356,120]
[342807884,1732143159139,-838.48,0.00058356,120]
[342807885,1732143159149,-1382.6,0.00058356,120]
[342807886,1732143159159,-500.0,0.00058356,120]
[342807887,1732143159169,-2198.56,0.00058356,120]
[342807888,1732143159180,-658.16,0.00058356,120]
[342807889,1732143159190,-500.0,0.00058356,120]
[342807890,1732143159200,-500.0,0.00058356,120]
[342807891,1732143159211,-581.06,0.00058356,120]
[342807892,1732143159222,-500.0,0.00058356,120]
[342807893,1732143159232,-843.03,0.00058356,120]
[342807894,1732143159242,-665.72,0.00058356,120]
[342807895,1732143159252,-789.82,0.00058356,120]
[342807896,1732143159262,-660.24,0.00058356,120]
[342807897,1732143159272,-500.0,0.00058356,120]
[342807898,1732143159283,-504.35,0.00058356,120]
[342807899,1732143159292,-2411.2,0.00058356,120]
[342807900,1732143159302,-773.4,0.00058356,120]
[342807901,1732143159312,-3997.56,0.00058356,120]
[342807902,1732143159322,-500.0,0.00058356,120]
[342807903,1732143159332,-445.00669709,0.00058356,120]
[342807904,1732143159341,-559.66,0.00058356,120]
[342807905,1732143159351,-1755.1,0.00058356,120]
[342807906,1732143159361,-1021.42,0.00058356,120]
[342807907,1732143159373,-968.59,0.00058356,120]
[342807908,1732143159383,-747.74,0.00058356,120]
[342807909,1732143159394,-151.0,0.00058356,120]
[342807910,1732143159404,-650.26,0.00058356,120]
[342807911,1732143159414,-552.66,0.00058356,120]
[342807912,1732143159424,-528.53,0.00058356,120]
[342807913,1732143159434,-661.12,0.00058356,120]
[342807914,1732143159444,-4504.33,0.00058356,120]
[342807915,1732143159454,-500.0,0.00058356,120]
[342807916,1732143159469,-1414.7,0.00058356,120]
[342807917,1732143159478,-500.0,0.00058356,120]
[342807918,1732143159489,-1839.1,0.00058356,20]
[342807919,1732143159499,-226.403162,0.00058356,120]
[342807920,1732143159510,-600.15,0.00058356,120]
[342807921,1732143159520,-639.71,0.00058356,120]
[342807922,1732143159532,-226.403162,0.00058356,120]
[342807923,1732143159542,-500.0,0.00058356,120]
[342807924,1732143159552,-1685.02,0.00058356,120]
[342807925,1732143159562,-500.0,0.00058356,120]
[342807926,1732143159571,-500.0,0.00058356,120]
[342807927,1732143159582,-643.92,0.00058356,120]
[342807928,1732143159592,-500.0,0.00058356,120]
[342807929,1732143159602,-503.41,0.00058356,120]
[342807930,1732143159612,-1838.85,0.00058356,120]
[342807931,1732143159622,-777.36,0.00058356,120]
[342807932,1732143159632,-1088.52,0.00058356,120]
[342807933,1732143159642,-3963.88,0.00058356,120]
[342807934,1732143159652,-500.0,0.00058356,120]
[342807935,1732143159662,-439.698091,0.00058356,120]
[342807936,1732143159672,-439.698091,0.00058356,120]
[342807937,1732143159681,-508.93,0.00058356,120]
[342807938,1732143159691,-500.0,0.00058356,120]
[342807939,1732143159700,-500.0,0.00058356,120]
[342807940,1732143159711,-522.18,0.00058356,120]
[342807941,1732143159721,-674.72,0.00058356,120]
[342807942,1732143159730,-151.0,0.00058356,120]
[342807943,1732143159740,-1573.1,0.00058356,120]
[342807944,1732143159749,-500.0,0.00058356,120]
[342807945,1732143159759,-1344.45,0.00058356,120]
[342807946,1732143159768,-695.34,0.00058356,120]
[342807947,1732143159778,-993.23,0.00058356,120]
[342807948,1732143159787,-5030.76,0.00058356,120]
[342807949,1732143159797,-530.39,0.00058356,120]
[342807950,1732143159807,-1007.71,0.00058356,120]
[342807951,1732143159816,-845.57,0.00058356,120]
[342807952,1732143159825,-1508.05,0.00058356,120]
[342807953,1732143159835,-500.0,0.00058356,120]
[342807954,1732143159844,-1000.0,0.00058356,30]
[342807955,1732143159854,-1949.27,0.00058356,120]
[342807956,1732143159863,-635.4,0.00058356,120]
[342807957,1732143159873,-3671.8,0.00058356,120]
[342807958,1732143159883,-873.15,0.00058356,120]
[342807959,1732143159892,-1275.78,0.00058356,120]
[342807960,1732143159902,-500.0,0.00058356,120]
[342807961,1732143159913,-1300.6,0.00058356,120]
[342807962,1732143159924,-500.0,0.00058356,120]
[342807963,1732143159934,-1078.43,0.00058356,120]
[342807964,1732143159944,-729.83,0.00058356,120]
[342807965,1732143159955,-1015.57,0.00058356,120]
[342807966,1732143159970,-562.04,0.00058356,120]
[342807967,1732143159979,-2222.66,0.00058356,120]
[342807968,1732143159989,-2596.1,0.00058356,120]
[342807969,1732143159999,-1080.64,0.00058356,120]
[342807970,1732143160009,-852.14,0.00058356,120]
[342807971,1732143160019,-569.32,0.00058356,120]
[342807972,1732143160028,-509.24,0.00058356,120]
[342807973,1732143160037,-500.0,0.00058356,120]
[342807974,1732143160046,-1411.12131,0.00058356,120]
[342807975,1732143160056,-700.0,0.00058356,120]
[342807976,1732143160066,-928.5,0.00058356,120]
[342807977,1732143160075,-1411.12131,0.00058356,120]
[342807978,1732143160085,-1806.6,0.00058356,120]
[342807979,1732143160095,-1129.79,0.00058356,120]
[342807980,1732143160105,-500.0,0.00058356,120]
[342807981,1732143160115,-500.0,0.00058356,120]
[342807982,1732143160124,-2425.19,0.00058356,120]
[342807983,1732143160134,-625.0,0.00058356,120]
[342807984,1732143160144,-500.0,0.00058356,120]
[342807985,1732143160154,-1018.93,0.00058356,120]
[342807986,1732143160164,-2073.72,0.00058356,120]
[342807987,1732143160173,-500.0,0.00058356,120]
[342807988,1732143160182,-1011.93,0.00058356,120]
[342807989,1732143160192,-1257.41,0.00058356,120]
[342807990,1732143160202,-1328.54,0.00058356,120]
[342807991,1732143160214,-893.2,0.00058356,120]
[342807992,1732143160223,-878.56,0.00058356,120]
[342807993,1732143160232,-1954.12,0.00058356,120]
[342807994,1732143160242,-1107.33,0.00058356,120]
[342807995,1732143160252,-5394.68,0.00058356,120]
[342807996,1732143160262,-500.0,0.00058356,120]
[342807997,1732143160271,-500.0,0.00058356,120]
[342807998,1732143160280,-543.1,0.00058356,120]
[342807999,1732143160289,-965.73,0.00058356,120]
[342808000,1732143160299,-500.0,0.00058356,120]
[342808001,1732143160308,-500.0,0.00058356,120]
[342808002,1732143160318,-1308.091702,0.00058356,120]
[342808003,1732143160327,-1317.76,0.00058356,120]
[342808004,1732143160337,-1308.091702,0.00058356,120]
[342808005,1732143160347,-594.46,0.00058356,120]
[342808006,1732143160356,-1617.12,0.00058356,120]
[342808007,1732143160366,-657.08,0.00058356,120]
[342808008,1732143160375,-4865.56,0.00058356,120]
[342808009,1732143160385,-628.07,0.00058356,120]
[342808010,1732143160395,-500.0,0.00058356,120]
[342808011,1732143160405,-500.0,0.00058356,120]
[342808012,1732143160414,-1510.86,0.00058356,120]
[342808013,1732143160424,-2529.98,0.00058356,120]
[342808014,1732143160433,-635.24,0.00058356,120]
[342808015,1732143160442,-750.97,0.00058356,120]